bitfinex-derivatives/quotes_SOLF0:USTF0_20250923
["timestamp","ask_amount","ask_price","bid_price","bid_amount"]
[1758610681373,3.90145591,219.41,219.35,4.1001]
[1758610681574,7.38,219.39,219.35,4.1001]
[1758610686079,9.13925091,219.49,219.34,65.84174346]
[1758610686269,16.9506882,219.48,219.37,2.05904346]
[1758610686470,7.38,219.46,219.37,2.05904346]
[1758610686673,7.38,219.44,219.34,2.05904346]
[1758610686874,7.38,219.42,219.34,2.05904346]
[1758610687072,3.90263632,219.41,219.37,4.0996]
[1758610687275,7.38,219.4,219.37,4.0996]
[1758610687576,2.05904346,219.45,219.34,65.84204346]
[1758610687577,7.38,219.44,219.34,65.84204346]
[1758610687778,3.90267697,219.43,219.34,65.84204346]
[1758610687973,3.90267697,219.42,219.34,65.84204346]
[1758610688178,3.90267697,219.41,219.34,65.84204346]
[1758610688374,2.05904346,219.45,219.39,4.0992]
[1758610688682,3.90272691,219.44,219.39,4.0992]
[1758610688981,7.38,219.42,219.39,4.0992]
[1758610689176,3.90272691,219.41,219.39,4.0992]
[1758610689485,7.38,219.41,219.39,4.0992]
[1758610689782,7.38,219.47,219.41,4.0989]
[1758610689980,2.05904346,219.48,219.41,4.0989]
[1758610689981,7.38,219.45,219.41,4.0989]
[1758610690182,2.05904346,219.48,219.41,4.0989]
[1758610690183,11.31150059,219.44,219.41,4.0989]
[1758610690374,3.93150059,219.43,219.41,4.0989]
[1758610690781,11.31150059,219.43,219.41,4.0989]
[1758610690978,3.93150059,219.42,219.41,4.0989]
[1758610691181,7.38,219.47,219.44,4.0984]
[1758610691477,7.38,219.51,219.42,63.7601]
[1758610691696,3.87808901,219.5,219.42,63.7601]
[1758610691975,3.87808901,219.49,219.46,4.098]
[1758610692181,3.87808901,219.48,219.46,4.098]
[1758610692379,7.38,219.53,219.46,4.098]
[1758610692572,3.87719881,219.52,219.46,4.098]
[1758610692772,7.38,219.5,219.46,4.098]
[1758610692973,3.87719881,219.49,219.46,4.098]
[1758610693173,7.38,219.5,219.46,4.098]
[1758610693482,3.87705626,219.49,219.46,4.098]
[1758610693784,7.38,219.5,219.39,5.06988112]
[1758610693976,3.87617539,219.49,219.42,2.05904346]
[1758610694281,11.25617539,219.48,219.38,63.7714]
[1758610694476,3.87617539,219.47,219.39,2.05904346]
[1758610694786,11.25617539,219.46,219.39,2.05904346]
[1758610694972,7.38,219.46,219.39,2.05904346]
[1758610695683,3.87652755,219.45,219.39,4.0993]
[1758610695983,7.38,219.46,219.39,4.0993]
[1758610696281,3.87645245,219.45,219.39,4.0993]
[1758610696482,7.38,219.46,219.39,4.0993]
[1758610696670,3.8763968,219.45,219.39,4.0993]
[1758610696876,7.38,219.46,219.39,4.0993]
[1758610697085,3.87646935,219.45,219.39,4.0993]
[1758610697385,7.38,219.46,219.39,4.0993]
[1758610697576,3.87647344,219.45,219.39,4.0993]
[1758610697776,7.38,219.46,219.39,4.0993]
[1758610697983,3.87647344,219.45,219.39,4.0993]
[1758610698173,7.38,219.46,219.39,4.0993]
[1758610698474,3.87647432,219.45,219.39,4.0993]
[1758610698672,7.38,219.46,219.39,4.0993]
[1758610698872,3.87640371,219.45,219.39,4.0993]
[1758610699081,7.38,219.46,219.39,4.0993]
[1758610699384,3.87640454,219.45,219.39,4.0993]
[1758610699682,3.87640454,219.45,219.36,65.83564346]
[1758610699683,7.12,219.43,219.36,6.15884346]
[1758610699884,7.12,219.43,219.36,4.0998]
[1758610700081,3.87688508,219.42,219.36,4.0998]
[1758610700278,7.12,219.4,219.36,4.0998]
[1758610700480,7.12,219.43,219.36,4.0998]
[1758610700683,5.93617578,219.42,219.36,4.0998]
[1758610700980,10.99713232,219.41,219.33,4.1004]
[1758610701182,3.87713232,219.4,219.33,4.1004]
[1758610701583,3.87713232,219.4,219.35,4.1001]
[1758610701784,7.12,219.4,219.35,4.1001]
[1758610701984,7.12,219.42,219.35,4.1001]
[1758610702288,3.87723629,219.41,219.35,4.1001]
[1758610702488,3.87723629,219.4,219.35,4.1001]
[1758610702688,7.12,219.39,219.35,4.1001]
[1758610702885,7.12,219.42,219.35,4.1001]
[1758610703091,3.87704612,219.41,219.35,4.1001]
[1758610703290,7.12,219.39,219.35,4.1001]
[1758610703489,7.12,219.42,219.35,4.1001]
[1758610703790,3.87688107,219.41,219.35,4.1001]
[1758610704086,7.12,219.39,219.35,4.1001]
[1758610705388,7.12,219.39,219.37,4.0997]
[1758610705593,7.12,219.43,219.32,2.05904346]
[1758610705791,3.8765193,219.42,219.32,2.05904346]
[1758610705992,7.12,219.4,219.34,4.1002]
[1758610706187,7.12,219.4,219.32,2.05904346]
[1758610706386,7.12,219.38,219.32,2.05904346]
[1758610707195,7.12,219.38,219.31,4.1007]
[1758610707387,7.12,219.38,219.31,6.15974346]
[1758610708291,7.12,219.38,219.31,4.1007]
[1758610708492,7.12,219.38,219.31,6.15974346]
[1758610709297,7.12,219.36,219.28,6.16034346]
[1758610709504,7.12,219.36,219.28,2.05904346]
[1758610710294,7.12,219.36,219.29,4.1012]
[1758610710494,7.12,219.36,219.28,2.05904346]
[1758610710695,7.4,219.4,219.31,2.05904346]
[1758610710894,3.87593765,219.39,219.31,2.05904346]
[1758610711094,3.87593765,219.38,219.31,2.05904346]
[1758610711295,3.87593765,219.37,219.31,2.05904346]
[1758610711502,7.4,219.4,219.31,2.05904346]
[1758610711691,3.87561329,219.39,219.31,2.05904346]
[1758610711894,3.87561329,219.38,219.31,6.15994346]
[1758610712200,3.87561329,219.37,219.31,6.15994346]
[1758610712397,7.4,219.4,219.31,6.15994346]
[1758610712600,3.87506301,219.39,219.31,6.15994346]
[1758610712803,3.87506301,219.38,219.31,6.15994346]
[1758610712998,3.87506301,219.37,219.31,6.15994346]
[1758610713197,7.4,219.4,219.31,6.15994346]
[1758610713398,3.87474243,219.39,219.31,6.15994346]
[1758610713598,3.87474243,219.38,219.31,6.15994346]
[1758610713798,3.87474243,219.37,219.31,6.15994346]
[1758610713998,7.4,219.4,219.31,6.15994346]
[1758610714200,3.87454687,219.39,219.31,6.15994346]
[1758610714400,11.27454687,219.38,219.31,6.15994346]
[1758610714602,3.87454687,219.37,219.31,6.15994346]
[1758610714797,7.4,219.38,219.31,6.15994346]
[1758610714997,3.8740619,219.37,219.31,4.1009]
[1758610715200,7.4,219.38,219.31,4.1009]
[1758610715405,7.4,219.36,219.29,2.05904346]
[1758610715601,7.4,219.36,219.28,4.1013]
[1758610715799,9.45904346,219.36,219.28,4.1013]
[1758610716307,9.45904346,219.36,219.26,4.1018]
[1758610717104,7.4,219.32,219.22,5.06988112]
[1758610717311,7.4,219.32,219.21,2.05904346]
[1758610717698,5.04155091,219.43,219.22,63.8181]
[1758610718001,7.4,219.36,219.26,2.05904346]
[1758610718197,7.4,219.36,219.29,2.05904346]
[1758610719112,7.4,219.36,219.22,5.06988112]
[1758610719303,7.4,219.33,219.23,2.05904346]
[1758610720510,7.4,219.33,219.23,6.16134346]
[1758610721110,7.4,219.33,219.25,4.1019]
[1758610721307,7.4,219.33,219.26,2.05904346]
[1758610722614,7.4,219.33,219.27,4.1016]
[1758610724214,9.45904346,219.39,219.29,6.16024346]
[1758610724414,7.4,219.37,219.29,2.05904346]
[1758610727217,7.4,219.37,219.3,4.101]
[1758610728012,7.4,219.4,219.32,2.05904346]
[1758610729218,7.4,219.4,219.32,6.15964346]
[1758610729516,7.4,219.4,219.32,2.05904346]
[1758610730818,7.4,219.4,219.34,4.1002]
[1758610731619,7.4,219.44,219.35,2.05904346]
[1758610731823,7.4,219.42,219.35,2.05904346]
[1758610732818,7.4,219.42,219.34,4.1002]
[1758610735711,7.4,219.42,219.35,4.1]
[1758610739122,7.4,219.42,219.32,4.1006]
[1758610739325,7.4,219.4,219.32,4.1006]
[1758610740927,7.4,219.4,219.34,4.1003]
[1758610741529,7.4,219.4,219.31,4.1008]
[1758610741729,7.4,219.4,219.26,5.06988112]
[1758610741929,7.67,219.38,219.26,4.1017]
[1758610742325,7.67,219.36,219.26,4.1017]
[1758610742527,7.67,219.34,219.26,4.1017]
[1758610749234,7.67,219.32,219.26,4.1017]
[1758610750726,7.67,219.32,219.28,4.1014]
[1758610751338,7.67,219.36,219.28,4.1014]
[1758610751636,7.67,219.34,219.28,4.1014]
[1758610751842,3.75880304,219.33,219.28,4.1014]
[1758610752038,7.67,219.36,219.28,4.1014]
[1758610752238,7.67,219.34,219.28,4.1014]
[1758610752437,7.67,219.32,219.28,4.1014]
[1758610752635,7.31761948,219.37,219.23,4.1024]
[1758610752835,11.4286769,219.36,219.22,5.06988112]
[1758610753034,7.67,219.34,219.22,5.06988112]
[1758610753336,7.67,219.32,219.22,5.06988112]
[1758610753533,7.67,219.32,219.21,5.06988112]
[1758610753731,3.75896031,219.31,219.2,101.61519645]
[1758610753937,3.75896031,219.3,219.2,101.61519645]
[1758610754134,3.75940158,219.29,219.2,101.61519645]
[1758610754339,7.67,219.28,219.2,101.61519645]
[1758610755940,7.67,219.28,219.22,4.1024]
[1758610762344,3.21771948,219.35,219.2,101.61519645]
[1758610762641,7.2,219.33,219.21,63.8198]
[1758610762844,7.2,219.3,219.17,5.06988112]
[1758610763040,4.1009,219.31,219.16,9.17358112]
[1758610763245,7.2,219.3,219.16,9.17358112]
[1758610763440,4.1009,219.31,219.18,4.1033]
[1758610763641,7.2,219.3,219.18,4.1033]
[1758610764249,7.2,219.3,219.2,4.1029]
[1758610768155,7.2,219.3,219.19,63.8271]
[1758610769847,7.2,219.3,219.23,4.1022]
[1758610773853,3.21771948,219.32,219.15,5.06988112]
[1758610773854,67.00711948,219.32,219.15,5.06988112]
[1758610774055,7.68,219.27,219.13,5.06988112]
[1758610774258,7.68,219.27,219.12,0.46047037]
[1758610774556,7.68,219.27,219.17,4.1035]
[1758610776551,7.68,219.27,219.19,4.1031]
[1758610780453,7.68,219.27,219.2,4.1028]
[1758610782257,3.21771948,219.28,219.12,68.91658112]
[1758610782465,7.68,219.26,219.15,63.8386]
[1758610783762,7.68,219.26,219.19,4.1029]
[1758610783963,7.68,219.26,219.16,63.8348]
[1758610784359,3.21771948,219.28,219.12,68.91658112]
[1758610784662,3.72931914,219.27,219.12,63.8467]
[1758610784864,3.72931914,219.26,219.12,63.8467]
[1758610785069,3.21771948,219.28,219.12,63.8467]
[1758610785260,3.72932129,219.27,219.12,63.8467]
[1758610785567,3.72932129,219.26,219.12,63.8467]
[1758610785767,4.1018,219.26,219.16,4.1035]
[1758610785969,7.68,219.25,219.16,4.1035]
[1758610787268,7.68,219.25,219.18,4.1033]
[1758610789868,7.68,219.25,219.19,4.1029]
[1758610795272,7.68,219.25,219.21,4.1027]
[1758610795472,7.68,219.29,219.21,2.06241696]
[1758610795774,3.73396278,219.28,219.21,2.06241696]
[1758610795974,7.68,219.29,219.24,2.06241696]
[1758610796174,2.06241696,219.35,219.24,2.06241696]
[1758610796375,11.41357555,219.34,219.24,2.06241696]
[1758610796673,7.68,219.32,219.24,2.06241696]
[1758610796874,3.73422476,219.31,219.25,4.1018]
[1758610797174,7.68,219.29,219.25,4.1018]
[1758610797466,7.68,219.34,219.26,2.06241696]
[1758610797671,7.68,219.32,219.26,2.06241696]
[1758610798074,7.68,219.32,219.24,6.16441696]
[1758610799668,7.68,219.32,219.24,4.102]
[1758610800171,9.74241696,219.32,219.24,4.102]
[1758610800366,7.68,219.29,219.21,2.06241696]
[1758610800985,9.76241696,219.33,219.22,63.8166]
[1758610801281,2.06241696,219.27,219.17,5.06988112]
[1758610801476,7.7,219.26,219.16,2.06241696]
[1758610801982,7.7,219.29,219.18,2.06241696]
[1758610802171,5.79752716,219.28,219.19,4.103]
[1758610802379,7.7,219.24,219.15,7.13229808]
[1758610802776,68.82315091,219.35,219.13,63.8441]
[1758610802777,9.76241696,219.28,219.18,2.06241696]
[1758610803074,9.76241696,219.28,219.16,68.90528112]
[1758610803075,2.06241696,219.25,219.15,7.13229808]
[1758610803474,2.06241696,219.25,219.19,4.1029]
[1758610804282,7.7,219.26,219.19,4.1029]
[1758610805581,9.76241696,219.23,219.16,4.1035]
[1758610805883,2.06241696,219.19,219.11,5.06988112]
[1758610806082,2.06241696,219.16,219.08,9.17488112]
[1758610806286,7.7,219.15,219.08,4.105]
[1758610806784,7.7,219.16,219.1,4.1047]
[1758610808088,7.7,219.16,219.07,4.1053]
[1758610809288,7.7,219.16,219.09,4.1049]
[1758610809787,7.7,219.19,219.11,4.1046]
[1758610810289,7.7,219.19,219.14,2.06241696]
[1758610810782,7.7,219.23,219.15,2.06241696]
[1758610810984,6.95056844,219.22,219.15,2.06241696]
[1758610811185,7.7,219.23,219.15,2.06241696]
[1758610811585,7.7,219.23,219.18,2.06241696]
[1758610811782,7.7,219.23,219.19,4.1031]
[1758610811982,7.7,219.28,219.19,4.1031]
[1758610812288,6.94860706,219.27,219.19,4.1031]
[1758610812487,2.06241696,219.3,219.21,6.16511696]
[1758610812488,7.7,219.29,219.21,6.16511696]
[1758610812689,7.7,219.29,219.23,2.06241696]
[1758610813088,7.7,219.29,219.23,6.16471696]
[1758610813390,7.7,219.29,219.23,2.06241696]
[1758610813888,7.7,219.29,219.25,4.1019]
[1758610814287,7.7,219.29,219.26,2.06241696]
[1758610814985,2.06241696,219.36,219.26,2.06241696]
[1758610815183,11.45839645,219.35,219.26,2.06241696]
[1758610815379,7.7,219.33,219.26,2.06241696]
[1758610815580,3.7582066,219.32,219.23,2.06241696]
[1758610815786,11.45840972,219.31,219.23,2.06241696]
[1758610815984,2.06241696,219.3,219.16,63.8348]
[1758610816188,11.41854039,219.29,219.2,2.06241696]
[1758610816388,7.66,219.29,219.2,2.06241696]
[1758610817891,7.66,219.29,219.23,4.1023]
[1758610818894,7.66,219.29,219.21,2.06241696]
[1758610820292,7.66,219.29,219.22,4.1025]
[1758610821395,7.66,219.29,219.24,4.1021]
[1758610821789,7.66,219.3,219.21,6.16501696]
[1758610821987,7.66,219.3,219.21,2.06241696]
[1758610822588,7.66,219.27,219.18,2.06241696]
[1758610823299,7.66,219.27,219.19,4.1031]
[1758610823698,7.66,219.27,219.21,6.16511696]
[1758610823995,7.66,219.27,219.21,2.06241696]
[1758610824197,7.66,219.33,219.24,2.06241696]
[1758610824391,7.66,219.31,219.25,4.102]
[1758610824796,7.66,219.31,219.24,2.06241696]
[1758610825497,7.66,219.38,219.27,2.06241696]
[1758610825695,7.66,219.36,219.27,2.06241696]
[1758610825902,7.66,219.35,219.26,2.06241696]
[1758610826101,7.66,219.35,219.26,4.1017]
[1758610826297,7.66,219.35,219.26,6.16411696]
[1758610826502,7.66,219.35,219.26,2.06241696]
[1758610826799,7.66,219.33,219.23,2.06241696]
[1758610827198,7.66,219.33,219.26,2.06241696]
[1758610827806,7.66,219.33,219.26,6.16401696]
[1758610828600,7.66,219.33,219.26,4.1016]
[1758610828998,2.06241696,219.3,219.16,5.05585058]
[1758610829208,7.66,219.29,219.21,2.06241696]
[1758610829398,7.66,219.29,219.19,2.06241696]
[1758610829799,7.66,219.29,219.2,4.1028]
[1758610830199,2.06241696,219.28,219.2,4.1028]
[1758610830500,7.66,219.27,219.2,4.1028]
[1758610830901,7.66,219.27,219.15,63.8387]
[1758610830902,2.06241696,219.25,219.17,4.1034]
[1758610831097,7.51,219.24,219.17,4.1034]
[1758610831502,7.51,219.24,219.18,2.06241696]
[1758610832304,7.51,219.24,219.19,4.103]
[1758610833007,7.51,219.27,219.19,4.103]
[1758610834503,2.06241696,219.26,219.19,4.103]
[1758610834708,7.51,219.25,219.16,6.16591696]
[1758610835196,2.06241696,219.19,219.13,4.1041]
[1758610835401,9.57241696,219.19,219.13,4.1041]
[1758610835602,9.57241696,219.19,219.11,94.32367002]
[1758610835803,7.51,219.16,219.04,63.8708]
[1758610836001,7.51,219.13,219.03,2.06241696]
[1758610836400,7.51,219.13,219.04,4.1058]
[1758610836802,2.06241696,219.14,218.98,127.774]
[1758610836803,2.06241696,219.08,218.98,11.22526754]
[1758610837005,7.51,219.07,218.98,6.16941696]
[1758610837507,7.51,219.07,219.0,4.1066]
[1758610838203,2.06241696,219.08,219.02,4.1062]
[1758610838398,7.51,219.09,219.02,4.1062]
[1758610840107,2.06241696,219.11,219.05,4.1057]
[1758610840506,7.51,219.17,219.01,4.1063]
[1758610840712,2.06241696,219.07,219.01,4.1063]
[1758610842102,2.06241696,219.07,218.98,2.06241696]
[1758610842515,7.51,219.08,219.0,2.06241696]
[1758610843119,7.51,219.08,219.02,4.1062]
[1758610845816,7.51,219.08,219.04,4.1058]
[1758610846021,2.06241696,219.09,219.04,4.1058]
[1758610846217,7.51,219.08,219.04,4.1058]
[1758610846410,2.06241696,219.11,219.06,4.1054]
[1758610847114,7.51,219.1,219.08,4.1051]
[1758610847318,7.51,219.16,219.08,65.92041696]
[1758610847513,7.51,219.16,219.06,63.864]
[1758610847822,2.06241696,219.17,219.11,4.1046]
[1758610848615,7.51,219.16,219.11,4.1046]
[1758610849219,2.06241696,219.17,219.11,4.1046]
[1758610849411,7.51,219.16,219.11,4.1046]
[1758610849616,2.06241696,219.17,219.11,4.1046]
[1758610849814,7.51,219.16,219.11,4.1046]
[1758610851324,2.06241696,219.17,219.11,4.1046]
[1758610851514,7.51,219.16,219.11,4.1046]
[1758610852017,0.61569691,219.21,219.04,63.8688]
[1758610852018,9.57241696,219.15,219.08,4.1051]
[1758610852219,7.51,219.12,219.08,4.1051]
[1758610852419,2.06241696,219.13,219.08,4.1051]
[1758610852618,7.51,219.12,219.05,4.1056]
[1758610853023,2.06241696,219.11,219.05,4.1056]
[1758610853925,9.57241696,219.13,219.07,4.1053]
[1758610854122,9.57241696,219.13,219.02,2.06241696]
[1758610854816,2.06241696,219.11,219.04,4.1058]
[1758610855317,7.51,219.1,219.04,4.1058]
[1758610855929,2.06241696,219.09,219.01,4.1064]
[1758610856114,2.06241696,219.09,219.01,63.8783]
[1758610856315,7.51,219.1,219.02,2.06241696]
[1758610856623,7.51,219.1,219.01,63.8783]
[1758610858020,7.51,219.1,219.05,4.1056]
[1758610858421,7.51,219.12,219.02,4.1061]
[1758610859721,7.51,219.12,219.04,4.1059]
[1758610859920,7.51,219.12,219.02,63.8762]
[1758610860324,7.51,219.12,219.03,4.106]
[1758610860626,7.23,219.12,219.0,63.8821]
[1758610860826,7.23,219.12,219.01,63.8793]
[1758610861822,7.23,219.12,219.04,4.1059]
[1758610863127,7.23,219.12,219.01,4.1063]
[1758610863438,7.23,219.12,218.98,63.8866]
[1758610863619,3.22680294,219.13,218.98,63.8866]
[1758610864229,11.3345,219.12,219.0,63.8804]
[1758610864629,11.3345,219.12,219.02,63.8754]
[1758610864630,7.23,219.12,219.02,63.8754]
[1758610865525,7.23,219.16,219.06,63.8637]
[1758610865732,7.23,219.16,219.05,3.22680294]
[1758610865919,7.23,219.16,219.07,63.8618]
[1758610866119,7.23,219.19,219.02,63.8762]
[1758610866325,3.22680294,219.2,219.03,63.8735]
[1758610866629,7.23,219.16,219.01,3.22680294]
[1758610867133,4.1041,219.14,219.04,4.1058]
[1758610867430,7.23,219.13,219.04,4.1058]
[1758610867829,11.3344,219.13,219.04,4.1058]
[1758610868033,10.45680294,219.13,219.01,4.1063]
[1758610868524,4.105,219.09,218.98,4.1069]
[1758610868725,7.23,219.08,218.98,4.1069]
[1758610869037,7.23,219.08,218.96,63.8931]
[1758610869334,7.23,219.06,218.93,127.8042]
[1758610869935,4.1058,219.05,218.97,4.1072]
[1758610870530,7.23,219.06,219.0,4.1067]
[1758610870732,7.23,219.06,218.95,63.8955]
[1758610870927,7.23,219.06,218.93,63.9015]
[1758610871326,3.22680294,219.04,218.9,63.9109]
[1758610871524,7.23,219.03,218.9,63.9109]
[1758610872334,7.23,219.03,218.92,63.9039]
[1758610872528,7.23,219.03,218.93,63.9025]
[1758610872828,7.23,219.03,218.9,63.9109]
[1758610873531,7.23,219.03,218.92,63.9058]
[1758610874123,7.23,219.03,218.95,4.1076]
[1758610874331,7.23,219.07,218.95,63.8968]
[1758610875136,3.73018521,219.06,218.95,63.8968]
[1758610875337,7.23,219.07,218.95,63.8968]
[1758610875529,3.73018521,219.06,218.95,63.8968]
[1758610875724,7.23,219.07,218.95,63.8968]
[1758610875930,7.23,219.07,218.99,4.1068]
[1758610876537,7.23,219.07,219.01,4.1064]
[1758610877633,10.72680294,219.14,219.01,63.8785]
[1758610877832,3.73207047,219.13,219.02,63.8759]
[1758610878030,3.73207047,219.12,219.07,4.1053]
[1758610878230,10.72680294,219.14,219.07,4.1053]
[1758610878435,3.73389965,219.13,219.07,4.1053]
[1758610878633,11.23389965,219.12,219.07,4.1053]
[1758610878832,3.22680294,219.14,219.07,4.1053]
[1758610879031,11.23389836,219.13,219.07,4.1053]
[1758610879336,7.5,219.11,219.07,4.1053]
[1758610879933,7.5,219.11,218.97,63.8905]
[1758610880232,3.74004733,219.1,218.98,63.8879]
[1758610880434,3.74025483,219.09,219.01,63.8777]
[1758610880731,7.5,219.11,219.01,63.8777]
[1758610881031,3.74018508,219.1,219.01,63.8777]
[1758610881234,7.5,219.11,219.01,63.8777]
[1758610881439,3.7404331,219.1,219.05,4.1056]
[1758610881732,3.22680294,219.14,218.99,63.8847]
[1758610881733,7.5,219.13,218.99,63.8847]
[1758610881933,3.74043266,219.12,218.99,63.8847]
[1758610882128,7.5,219.1,219.02,4.1062]
[1758610882337,3.74043266,219.09,218.95,68.95265058]
[1758610882535,3.74043266,219.09,218.96,63.894]
[1758610882839,7.5,219.08,218.99,4.1067]
[1758610883235,7.5,219.08,218.96,4.1073]
[1758610883440,3.74091715,219.07,218.96,4.1073]
[1758610883644,7.5,219.05,218.96,4.1073]
[1758610884234,7.5,219.05,218.98,4.107]
[1758610884439,7.5,219.05,218.96,63.8936]
[1758610884942,7.5,219.09,219.0,4.1066]
[1758610885142,3.74029466,219.08,219.0,4.1066]
[1758610885442,7.5,219.09,219.0,4.1066]
[1758610885640,3.74011099,219.08,219.0,4.1066]
[1758610885835,7.5,219.09,219.0,4.1066]
[1758610886031,3.74010975,219.08,218.97,4.1072]
[1758610886237,7.5,219.06,218.97,4.1072]
[1758610886441,7.5,219.06,218.94,4.1077]
[1758610886633,7.5,219.06,218.92,67.13220294]
[1758610886930,7.5,219.06,218.93,63.9027]
[1758610887734,7.5,219.06,218.96,4.1074]
[1758610888137,7.5,219.06,218.94,63.899]
[1758610889143,7.5,219.06,218.93,63.9022]
[1758610889441,7.5,219.06,218.99,4.1069]
[1758610890044,7.5,219.06,218.96,4.1073]
[1758610890446,7.5,219.06,218.94,63.8992]
[1758610891844,7.5,219.06,218.98,4.1071]
[1758610892547,7.5,219.06,219.0,4.1067]
[1758610893346,7.5,219.06,218.97,4.1072]
[1758610893940,11.6056,219.06,218.97,3.4472]
[1758610894849,14.83240294,219.06,218.95,4.1076]
[1758610895348,7.55,219.04,218.95,4.1076]
[1758610895850,7.55,219.01,218.93,4.108]
[1758610896048,7.55,219.01,218.89,5.05585058]
[1758610896344,4.1067,219.0,218.91,4.1084]
[1758610896842,7.55,219.01,218.93,4.108]
[1758610897340,7.55,219.01,218.94,4.1077]
[1758610898137,7.55,219.06,218.94,63.8995]
[1758610899252,7.55,219.06,218.96,4.1074]
[1758610899446,11.6556,219.06,218.96,4.1074]
[1758610900348,7.55,219.04,218.96,4.1074]
[1758610901847,7.55,219.04,218.94,63.8998]
[1758610902850,7.55,219.04,218.97,4.1071]
[1758610903860,11.6559,219.04,218.94,4.1077]
[1758610904358,11.6559,219.04,218.95,4.1075]
[1758610904553,7.55,219.04,218.95,4.1075]
[1758610904858,7.55,219.04,218.92,3.22680294]
[1758610905164,7.55,219.04,218.97,4.1072]
[1758610906354,7.55,219.04,218.95,4.1076]
[1758610906760,7.55,219.04,218.92,63.9052]
[1758610907159,7.55,219.04,218.98,4.1071]
[1758610907955,7.55,219.04,219.0,4.1066]
[1758610908263,4.1055,219.07,219.0,4.1066]
[1758610908559,11.29315175,219.06,219.0,4.1066]
[1758610908757,7.55,219.04,219.0,4.1066]
[1758610909061,7.55,219.06,219.0,4.1066]
[1758610909262,7.55,219.04,218.95,63.8962]
[1758610910358,7.55,219.04,219.0,4.1065]
[1758610910557,7.55,219.08,218.97,63.8905]
[1758610910763,3.74373574,219.07,218.98,63.888]
[1758610910956,7.55,219.08,218.98,63.888]
[1758610911956,7.55,219.08,218.97,3.22680294]
[1758610911957,7.55,219.08,219.02,4.1062]
[1758610912153,7.55,219.06,219.02,4.1062]
[1758610912751,7.55,219.1,219.02,4.1062]
[1758610912962,3.74685226,219.09,219.02,4.1062]
[1758610913160,11.29685226,219.08,219.02,4.1062]
[1758610913353,3.74685226,219.07,219.02,4.1062]
[1758610913554,7.55,219.06,219.02,4.1062]
[1758610916466,11.6548,219.11,219.02,4.1062]
[1758610916766,3.74709755,219.1,219.02,4.1062]
[1758610916966,3.74709755,219.09,219.03,4.1059]
[1758610917155,11.29709755,219.08,219.03,4.1059]
[1758610917355,7.55,219.08,219.03,4.1059]
[1758610917960,7.55,219.08,218.99,63.8851]
[1758610917961,3.22680294,219.15,219.05,4.1057]
[1758610918159,11.296786,219.14,219.03,63.8735]
[1758610918363,3.746786,219.13,219.03,63.8735]
[1758610918669,3.746786,219.12,219.03,65.93848218]
[1758610918863,9.61498218,219.14,219.03,65.93848218]
[1758610919168,3.74591057,219.13,219.03,65.93848218]
[1758610919367,3.74591057,219.12,219.03,65.93848218]
[1758610919571,9.61498218,219.14,219.03,65.93848218]
[1758610919869,3.74536674,219.13,219.07,4.1053]
[1758610920061,11.29536674,219.12,219.07,4.1053]
[1758610920363,7.55,219.12,219.07,4.1053]
[1758610920871,7.52,219.07,218.98,5.05585058]
[1758610921368,7.52,219.07,218.97,4.1071]
[1758610921568,2.06498218,219.05,218.97,4.1071]
[1758610921767,2.06498218,219.05,218.96,2.06498218]
[1758610921967,2.06498218,219.05,218.99,4.1068]
[1758610922364,2.06498218,219.05,218.97,4.1072]